bitfinex-derivatives/quotes_ETHF0:USTF0_20241207
["timestamp","ask_amount","ask_price","bid_price","bid_amount"]
[1733598368398,0.1741,4016.3,4016.2,0.786]
[1733598368803,0.1741,4016.3,4016.2,0.96011]
[1733598369000,0.1741,4016.3,4016.2,0.786]
[1733598369500,0.1741,4016.3,4016.1,0.17411]
[1733598369501,0.43524,4016.5,4016.0,0.662]
[1733598369711,0.17411,4016.1,4016.0,0.662]
[1733598370100,0.54891,4016.1,4016.0,0.662]
[1733598370299,0.17411,4016.0,4015.9,0.4157]
[1733598370794,0.3748,4016.1,4015.9,0.4157]
[1733598371001,0.54891,4016.1,4016.0,0.17411]
[1733598372007,0.3748,4016.1,4016.0,0.17411]
[1733598372305,0.54891,4016.1,4015.9,0.58982]
[1733598372500,0.17411,4016.0,4015.9,0.4157]
[1733598374107,0.17411,4016.1,4015.9,0.58982]
[1733598374305,0.8108,4016.6,4015.9,0.58982]
[1733598374510,0.17411,4016.0,4015.9,0.58982]
[1733598375397,0.17411,4016.0,4015.9,0.4157]
[1733598375806,0.8108,4016.6,4015.9,0.4157]
[1733598376012,0.17411,4016.2,4016.0,0.17411]
[1733598376311,0.8108,4016.6,4015.9,0.4157]
[1733598376511,0.17411,4016.2,4016.0,0.17411]
[1733598376710,0.1741,4016.4,4016.1,0.17411]
[1733598377010,0.8108,4016.6,4016.2,0.3794]
[1733598377011,0.1741,4016.3,4016.2,0.3794]
[1733598380418,0.8108,4016.6,4016.2,0.3794]
[1733598380611,0.1741,4016.4,4016.3,0.3759]
[1733598380813,2.92655571,4017.1,4016.3,0.3759]
[1733598381113,3.34055571,4017.2,4016.5,3.2078]
[1733598381414,0.17407,4017.1,4016.9,0.17407]
[1733598381723,0.17407,4017.1,4016.5,3.2078]
[1733598381724,0.388,4017.3,4017.0,0.3876]
[1733598382015,0.56206,4017.3,4017.1,0.58897]
[1733598382212,6.13435571,4017.4,4017.1,0.58897]
[1733598382213,2.92655571,4017.5,4017.1,0.4149]
[1733598382413,0.17405,4017.5,4017.1,0.8078]
[1733598382615,0.17406,4017.4,4017.2,0.17406]
[1733598383019,2.92655571,4017.5,4017.1,1.4698]
[1733598383221,0.17405,4017.5,4017.3,0.17406]
[1733598383917,3.30815571,4017.6,4017.1,1.4698]
[1733598384120,0.17405,4017.5,4017.1,1.4698]
[1733598384326,3.30815571,4017.6,4017.4,0.17405]
[1733598384327,3.48220571,4017.6,4017.4,0.17405]
[1733598384526,3.48220571,4017.6,4017.1,1.4698]
[1733598384527,0.17405,4017.5,4017.3,0.17406]
[1733598385025,3.30815571,4017.6,4017.2,0.17406]
[1733598385226,0.17406,4017.2,4017.1,1.4698]
[1733598385417,0.3816,4017.6,4017.1,1.4698]
[1733598385622,0.17406,4017.3,4017.1,1.4698]
[1733598386025,0.17406,4017.3,4017.1,1.64387]
[1733598386232,0.17405,4017.5,4017.2,0.17406]
[1733598386726,0.17406,4017.4,4017.2,0.17406]
[1733598387226,0.17406,4017.2,4017.1,1.4698]
[1733598387421,0.3816,4017.6,4017.0,3.2078]
[1733598387422,6.51595571,4017.6,4017.0,3.2078]
[1733598387622,0.17407,4017.1,4017.0,3.2078]
[1733598388122,0.17407,4017.1,4017.0,3.38187]
[1733598388429,0.17407,4017.1,4017.0,3.2078]
[1733598389225,0.3821,4017.4,4016.7,0.96168]
[1733598389423,0.1741,4016.5,4016.4,0.17409]
[1733598389928,0.17409,4016.6,4016.5,0.17409]
[1733598390327,0.3758,4017.0,4016.3,1.4685]
[1733598390629,0.17409,4016.6,4016.5,0.17409]
[1733598390820,0.17409,4016.5,4016.4,0.1741]
[1733598391725,0.1741,4016.4,4016.3,1.4685]
[1733598392635,0.1741,4016.5,4016.3,1.6426]
[1733598392927,0.1741,4016.4,4016.3,1.4685]
[1733598393128,0.3954,4016.8,4016.2,0.3759]
[1733598393129,0.1741,4016.3,4016.2,0.3759]
[1733598393329,0.3954,4016.8,4016.1,0.662]
[1733598393330,0.17411,4016.2,4016.1,0.662]
[1733598393624,0.58801,4016.2,4016.1,0.662]
[1733598393824,0.17412,4015.8,4015.7,1.34473]
[1733598394019,0.17412,4015.8,4015.7,1.4528]
[1733598394725,0.17412,4015.9,4015.8,0.17412]
[1733598395128,0.17412,4015.9,4015.7,1.4528]
[1733598395129,0.4139,4016.2,4015.7,1.4528]
[1733598395626,0.17411,4016.1,4015.7,1.4528]
[1733598395824,0.17411,4016.1,4016.0,0.17411]
[1733598396024,0.4139,4016.2,4016.1,0.17411]
[1733598396233,0.17411,4016.1,4016.0,0.17411]
[1733598396429,6.13435571,4016.6,4015.7,1.4528]
[1733598396430,2.92655571,4016.5,4015.7,1.4528]
[1733598396633,0.17409,4016.6,4016.4,0.1741]
[1733598396931,0.17409,4016.6,4016.5,1.1559]
[1733598397325,2.92655571,4016.9,4016.7,0.17408]
[1733598397326,3.10063571,4016.9,4016.7,0.17408]
[1733598397531,2.92655571,4017.1,4016.7,0.17408]
[1733598397837,2.92655571,4017.2,4016.7,0.17408]
[1733598398135,7.11508934,4017.4,4016.5,1.1559]
[1733598398136,0.17407,4017.0,4016.5,1.1559]
[1733598398332,3.2078,4017.4,4016.5,1.1559]
[1733598398527,0.17407,4017.0,4016.7,0.17408]
[1733598398721,0.17407,4017.0,4016.8,0.17408]
[1733598398932,0.17407,4017.0,4016.6,0.17409]
[1733598398933,0.17408,4016.9,4016.6,0.17409]
[1733598399335,0.17408,4016.9,4016.5,1.1559]
[1733598399336,2.92975472,4016.9,4016.5,1.1559]
[1733598399527,0.17409,4016.6,4016.5,1.1559]
[1733598399728,2.92975472,4016.8,4016.5,1.1559]
[1733598399938,0.17409,4016.7,4016.5,1.32999]
[1733598400638,2.92975472,4016.8,4016.5,1.1559]
[1733598401240,3.10383472,4016.8,4016.6,0.17409]
[1733598401533,2.92975472,4016.8,4016.6,0.17409]
[1733598401737,2.92975472,4016.8,4016.7,0.17408]
[1733598403237,0.3902,4017.2,4016.5,1.1559]
[1733598403535,0.3902,4017.2,4016.9,0.17407]
[1733598403536,0.17407,4017.1,4016.9,0.17407]
[1733598403736,0.17407,4017.1,4016.8,0.17408]
[1733598403930,0.17407,4017.1,4016.6,3.87995208]
[1733598404132,0.17406,4017.4,4016.8,3.87995208]
[1733598404330,0.3911,4017.5,4016.9,0.662]
[1733598404532,0.17406,4017.3,4016.9,0.662]
[1733598404727,0.17406,4017.3,4017.1,0.17406]
[1733598404934,0.17406,4017.3,4017.2,0.3842]
[1733598409133,0.17406,4017.3,4017.2,0.55826]
[1733598410039,0.3911,4017.5,4017.3,0.17405]
[1733598410040,0.17406,4017.4,4017.3,0.17405]
[1733598410633,0.17405,4017.4,4017.3,0.17405]
[1733598411035,0.17405,4017.4,4017.3,0.17406]
[1733598411036,0.17406,4017.4,4017.3,0.17406]
[1733598411439,0.3911,4017.5,4017.4,0.17405]
[1733598411440,0.56515,4017.5,4017.4,0.17405]
[1733598411638,0.3911,4017.5,4017.3,0.17405]
[1733598411837,0.17406,4017.3,4017.2,0.55826]
[1733598412036,0.17406,4017.4,4017.2,0.55826]
[1733598412442,0.3911,4017.5,4017.2,0.55826]
[1733598412741,0.17406,4017.4,4017.2,0.55826]
[1733598412943,0.17405,4017.5,4017.3,0.17406]
[1733598413243,2.92975472,4017.7,4017.2,0.3842]
[1733598413541,3.10380472,4017.7,4017.3,0.3964]
[1733598413841,0.17405,4017.6,4017.4,0.17405]
[1733598414034,2.92975472,4017.7,4017.3,0.3964]
[1733598414233,0.17405,4017.6,4017.4,0.17405]
[1733598414636,0.17405,4017.6,4017.5,0.3923]
[1733598415644,3.31995472,4017.8,4017.5,0.3923]
[1733598415844,3.31995472,4017.8,4017.5,0.56635]
[1733598415845,0.17404,4017.7,4017.5,0.56635]
[1733598416136,0.17405,4017.6,4017.5,0.3923]
[1733598416336,3.31995472,4017.8,4017.5,0.56635]
[1733598416640,0.17404,4017.7,4017.5,0.56635]
[1733598417441,0.17405,4017.6,4017.5,0.56635]
[1733598417636,0.17404,4017.7,4017.5,0.56635]
[1733598417838,2.92975472,4017.8,4017.7,0.17404]
[1733598418041,0.57943,4018.0,4017.8,0.17403]
[1733598418242,0.57943,4018.0,4017.9,0.4071]
[1733598418941,0.17403,4018.0,4017.9,0.4071]
[1733598419640,5.0562464,4018.0,4017.9,0.4071]
[1733598421533,4.8822164,4018.2,4018.0,0.17403]
[1733598421732,5.2780164,4018.3,4018.1,0.17402]
[1733598422137,5.2780164,4018.3,4018.2,0.17402]
[1733598422339,0.3958,4018.3,4018.2,0.17402]
[1733598422539,5.2780164,4018.3,4018.2,0.17402]
[1733598422740,0.3958,4018.3,4018.2,0.17402]
[1733598423643,0.17402,4018.1,4018.0,0.8109]
[1733598423946,0.17403,4018.0,4017.9,0.4071]
[1733598424143,4.8822164,4018.2,4017.9,0.4071]
[1733598424341,4.07834863,4018.1,4017.9,0.58113]
[1733598424541,3.90432863,4018.0,4017.9,0.4071]
[1733598424742,3.90432863,4018.1,4017.9,0.4071]
[1733598425347,0.3958,4018.3,4017.9,0.4071]
[1733598425546,0.17403,4018.1,4017.9,0.4071]
[1733598425745,0.17402,4018.2,4018.0,0.17403]
[1733598426044,0.3958,4018.3,4017.9,0.4071]
[1733598426245,1.87205646,4019.0,4018.2,3.2078]
[1733598426547,0.3899,4019.4,4018.9,1.93412747]
[1733598426748,0.8023,4019.4,4018.9,0.662]
[1733598426943,0.8023,4019.4,4018.8,0.17399]
[1733598427144,0.17399,4019.0,4018.9,0.662]
[1733598427354,0.17398,4019.1,4018.9,0.662]
[1733598427555,0.8023,4019.4,4018.9,0.662]
[1733598428050,0.17398,4019.0,4018.9,0.662]
[1733598429549,0.18423812,4019.0,4018.9,0.662]
[1733598430441,0.18423812,4019.0,4018.9,1.069]
[1733598430855,0.18423812,4019.0,4018.9,0.407]
[1733598432753,0.18423812,4019.0,4018.9,0.58099]
[1733598433466,0.18423812,4019.0,4018.9,0.407]
[1733598433968,0.18423812,4019.0,4018.7,0.662]
[1733598433969,0.17399,4018.8,4018.7,0.662]
[1733598434156,0.385,4018.9,4018.6,0.7715]
[1733598434357,0.17399,4018.8,4018.7,0.662]
[1733598440150,0.01025812,4019.0,4018.7,0.662]
[1733598440352,0.18423812,4019.0,4018.9,1.93412747]
[1733598443259,0.18423812,4019.0,4018.9,2.10811747]
[1733598443260,0.01025812,4019.0,4018.9,2.10811747]
[1733598443574,0.18423812,4019.0,4018.9,1.93412747]
[1733598444459,0.01025812,4019.0,4018.9,1.93412747]
[1733598444655,0.01025812,4019.0,4018.9,1.06492191]
[1733598445358,0.01025812,4019.0,4018.9,0.89093191]
[1733598445558,0.18423812,4019.0,4018.9,0.89093191]
[1733598446259,0.01025812,4019.0,4018.9,1.06492191]
[1733598447156,0.01025812,4019.0,4018.9,0.89093191]
[1733598447554,0.01025812,4019.0,4018.9,1.06492191]
[1733598450162,0.18423812,4019.0,4018.9,1.06492191]
[1733598450562,0.18423812,4019.0,4018.9,0.89093191]
[1733598450960,0.01025812,4019.0,4018.7,3.8698]
[1733598451265,0.01025812,4019.0,4018.9,0.89093191]
[1733598451266,0.18423812,4019.0,4018.9,0.89093191]
[1733598452959,0.18423812,4019.0,4018.9,1.55293191]
[1733598453662,0.01025812,4019.0,4018.9,1.55293191]
[1733598453860,0.01025812,4019.0,4018.9,1.72692191]
[1733598454265,0.18423812,4019.0,4018.9,1.72692191]
[1733598454463,0.01025812,4019.0,4018.9,1.72692191]
[1733598457264,0.4109,4019.8,4018.9,1.72692191]
[1733598457265,0.17394,4020.0,4019.7,0.17395]
[1733598457465,0.17394,4020.0,4019.8,0.55945]
[1733598457668,0.17395,4019.9,4019.8,0.3855]
[1733598458172,0.17395,4019.9,4019.8,1.27643191]
[1733598459667,0.17395,4019.9,4019.8,1.66533191]
[1733598460366,0.17395,4019.9,4019.8,2.07063191]
[1733598462275,0.17395,4019.9,4019.8,1.68173191]
[1733598462576,0.17395,4019.9,4019.8,0.89093191]
[1733598467279,0.3918,4020.0,4019.5,0.661]
[1733598467477,0.17398,4019.6,4019.5,0.661]
[1733598467671,0.17398,4019.6,4019.5,1.55193191]
[1733598468071,0.17399,4019.4,4019.3,0.661]
[1733598468275,0.17399,4019.4,4019.3,1.55193191]
[1733598468477,0.408,4019.4,4019.3,1.55193191]
[1733598469077,0.58198,4019.4,4019.3,1.55193191]
[1733598470976,0.58198,4019.4,4019.3,0.89093191]
[1733598471383,4.48630863,4019.4,4019.3,0.89093191]
[1733598471682,4.48630863,4019.4,4019.0,0.3969]
[1733598471683,0.174,4019.2,4019.0,1.2319]
[1733598471980,3.90736192,4019.2,4019.1,0.174]
[1733598472377,5.2902164,4019.4,4019.0,1.0579]
[1733598472378,5.0562064,4019.3,4019.2,0.17399]
[1733598472579,0.17399,4019.2,4019.1,0.174]
[1733598472777,3.2062164,4019.3,4019.2,1.06492191]
[1733598472984,3.90769143,4019.4,4019.2,0.89093191]
[1733598473177,3.90769143,4019.4,4019.3,0.17399]
[1733598473379,0.56356,4020.0,4019.2,0.89093191]
[1733598473680,3.90770122,4019.6,4019.2,0.43499]
[1733598473912,3.90770122,4019.6,4019.5,0.17398]
[1733598474079,3.90770122,4019.7,4019.6,0.17398]
[1733598474278,3.90770122,4019.7,4019.6,0.83498]
[1733598474683,3.90770122,4019.8,4019.7,0.17397]
[1733598475286,3.90770122,4019.9,4019.6,0.661]
[1733598475489,3.9070106,4019.8,4019.6,0.661]
[1733598475682,3.9070106,4019.8,4019.7,0.17397]
[1733598476788,3.9070106,4019.8,4019.7,1.06490191]
[1733598478488,3.2078,4020.2,4019.7,3.87995208]
[1733598478687,0.17395,4020.1,4019.9,0.17396]
[1733598479084,3.2078,4020.2,4020.0,0.55486]
[1733598479085,3.38175,4020.2,4020.0,0.55486]
[1733598479287,3.2078,4020.2,4020.0,0.3809]
[1733598479487,0.17395,4020.1,4020.0,0.3809]
[1733598480287,3.38175,4020.2,4020.0,0.55486]
[1733598480581,3.38175,4020.2,4020.1,0.89093191]
[1733598481893,0.17395,4020.2,4020.1,0.89093191]
[1733598482281,3.38175,4020.2,4020.1,0.89093191]
[1733598483387,3.38175,4020.2,4020.0,0.55485]
[1733598483588,3.38175,4020.2,4020.1,0.17395]
[1733598483787,3.38175,4020.2,4020.0,1.27183191]
[1733598484182,3.2078,4020.2,4020.0,1.27183191]
[1733598484385,3.2078,4020.2,4020.1,0.17395]
[1733598489095,3.2078,4020.2,4020.1,0.58865]
[1733598489390,6.03337955,4020.8,4020.1,0.4147]
[1733598489592,10.04382448,4021.0,4020.7,0.89093191]
[1733598489593,6.63754955,4020.9,4020.7,0.89093191]
[1733598489891,6.63754955,4020.9,4020.7,1.06485191]
[1733598489892,0.95202,4020.9,4020.7,1.06485191]
[1733598490290,3.2078,4021.0,4020.8,0.7959]
[1733598490492,0.17392,4020.9,4020.8,0.7959]
[1733598491088,0.17392,4020.9,4020.8,1.68683191]
[1733598491292,0.17392,4020.9,4020.8,1.30563191]
[1733598491997,0.17392,4020.9,4020.8,1.47955191]
[1733598492191,3.2078,4021.0,4020.8,1.47955191]
[1733598492192,3.2078,4021.0,4020.9,0.17392]
[1733598492901,8.08959211,4021.0,4020.9,0.17392]
[1733598493388,3.2078,4021.0,4020.9,0.58932]
[1733598496298,2.92826304,4021.4,4020.7,3.2078]
[1733598496595,2.92826304,4021.7,4021.2,1.78186382]
[1733598496793,2.92826304,4021.8,4021.6,0.17389]
[1733598496994,2.92826304,4021.8,4021.3,0.661]
[1733598496995,2.92826304,4021.9,4021.7,1.06482191]
[1733598497396,2.92826304,4021.9,4021.7,0.89093191]
[1733598497592,3.32426304,4022.0,4021.7,0.89093191]
[1733598497795,0.396,4022.0,4021.9,0.17388]
[1733598498297,6.13606304,4022.1,4022.0,0.17387]
[1733598498498,3.38167,4022.1,4022.0,0.89093191]
[1733598499096,3.2078,4022.1,4021.2,3.2078]
[1733598499315,0.17388,4021.8,4021.7,0.89093191]
[1733598499706,0.787,4021.9,4021.6,0.89093191]
[1733598499998,0.787,4021.9,4021.2,3.2078]
[1733598499999,0.1739,4021.3,4021.2,3.2078]
[1733598500199,0.1739,4021.3,4021.2,4.09873191]
[1733598500896,3.71526304,4021.9,4021.2,4.09873191]
[1733598501201,0.1739,4021.3,4021.2,4.09873191]
[1733598502502,0.1739,4021.3,4021.2,0.89093191]
[1733598502704,0.1739,4021.3,4021.2,1.06484191]
[1733598503095,0.787,4021.9,4021.2,0.89093191]
[1733598503297,0.17389,4021.7,4021.6,0.89093191]
[1733598504406,0.17389,4021.7,4021.6,1.06482191]
[1733598504702,0.787,4021.9,4021.6,0.89093191]
[1733598505004,0.17388,4021.8,4021.7,0.17388]
[1733598505309,0.17388,4021.8,4021.7,0.55418]
[1733598505806,0.3936,4021.9,4021.7,0.55418]
[1733598505807,0.3936,4021.9,4021.7,0.3803]
[1733598506308,0.3936,4021.9,4021.8,0.93988]
[1733598506811,3.2078,4022.1,4021.8,0.93988]
[1733598506812,3.2078,4022.1,4022.0,0.17387]
[1733598507005,3.2078,4022.1,4021.8,0.766]
[1733598507006,3.38167,4022.1,4021.9,1.06481191]
[1733598507300,0.17387,4022.0,4021.9,0.89093191]
[1733598508102,3.2078,4022.1,4021.7,0.3803]
[1733598508304,0.17388,4021.8,4021.7,1.27123191]
[1733598508808,3.48864304,4021.9,4021.7,1.27123191]
[1733598509208,3.31476304,4021.9,4021.7,1.27123191]
[1733598509713,3.48864304,4021.9,4021.7,1.27123191]
[1733598509916,3.31476304,4021.9,4021.7,1.27123191]
[1733598510215,3.48864304,4021.9,4021.7,1.44511191]
[1733598510619,3.31476304,4021.9,4021.7,1.44511191]
[1733598510908,3.48864304,4021.9,4021.7,1.44511191]
[1733598511304,0.17388,4021.8,4021.7,1.44511191]
[1733598511508,0.17388,4021.8,4021.7,1.44512191]
[1733598512414,3.31476304,4021.9,4021.7,1.27123191]
[1733598512612,0.17388,4021.8,4021.7,1.44511191]
[1733598512820,0.17388,4021.8,4021.7,1.27123191]
[1733598513814,0.17388,4021.8,4021.7,1.44512191]
[1733598514311,0.3865,4021.9,4021.7,1.44512191]
[1733598514711,0.17388,4021.8,4021.7,1.44512191]
[1733598514910,0.17388,4021.8,4021.7,1.27123191]
[1733598516616,0.17388,4021.8,4021.7,0.3803]
[1733598516919,0.17388,4021.8,4021.7,1.27123191]
[1733598519514,0.17388,4021.8,4021.7,1.44512191]
[1733598520226,0.17388,4021.8,4021.7,1.27123191]
[1733598523724,3.10214304,4021.8,4021.7,1.27123191]
[1733598524628,3.10214304,4021.8,4021.7,0.89093191]
[1733598525326,0.17388,4021.8,4021.7,0.89093191]
[1733598526121,0.17388,4021.8,4021.4,3.2078]
[1733598526122,0.17389,4021.5,4021.4,3.2078]
[1733598526326,3.09537313,4021.5,4021.4,4.09873191]
[1733598526827,0.17389,4021.5,4021.4,4.09873191]
[1733598527220,3.09564055,4021.5,4021.4,4.09873191]
[1733598527828,0.17389,4021.5,4021.4,4.09873191]
[1733598529529,0.56109,4021.5,4021.4,4.09873191]
[1733598530525,4.46543535,4021.5,4021.4,4.09873191]
[1733598531038,0.56109,4021.5,4021.4,4.09873191]
[1733598531238,0.56109,4021.5,4020.8,3.2078]
[1733598531239,0.3872,4021.5,4020.8,3.2078]
[1733598531536,0.3872,4021.5,4020.8,3.38172]
[1733598531537,0.17392,4020.9,4020.8,3.38172]
[1733598531733,0.17392,4020.9,4020.8,3.2078]
[1733598533245,0.17392,4020.9,4020.8,4.27265191]
[1733598533734,0.17392,4020.9,4020.8,4.09873191]
[1733598535236,0.17392,4020.9,4020.8,0.89093191]
[1733598535738,0.17392,4020.9,4020.7,0.17393]
[1733598535938,0.17392,4020.9,4020.8,0.89093191]
[1733598536842,0.17392,4020.9,4020.8,1.06485191]
[1733598537345,0.17392,4021.0,4020.9,0.17392]
[1733598537845,2.92438052,4021.1,4021.0,0.17392]
[1733598538339,2.92438052,4021.2,4021.1,0.17391]
[1733598538546,4.83794535,4021.4,4021.2,0.17391]
[1733598538744,4.66404535,4021.4,4021.2,0.17391]
[1733598539044,0.17391,4021.3,4021.2,0.17391]
[1733598539542,0.17391,4021.2,4021.1,0.89093191]
[1733598539743,0.7597,4021.4,4020.9,0.83492]
[1733598539744,0.17392,4021.0,4020.9,0.83492]
[1733598539936,4.88429305,4021.0,4020.9,0.17392]
[1733598540132,4.88429305,4021.1,4020.9,0.89093191]
[1733598540343,4.88429305,4021.1,4021.0,1.06485191]
[1733598540734,0.7597,4021.4,4021.0,0.89093191]
[1733598541041,0.7597,4021.4,4020.7,0.661]
[1733598541240,0.7597,4021.4,4021.1,0.89093191]
[1733598541436,0.7597,4021.4,4021.2,0.17391]
[1733598541437,0.9336,4021.4,4021.2,0.17391]
[1733598541634,0.1739,4021.3,4021.2,0.17391]
[1733598542138,0.1739,4021.3,4021.1,0.89093191]
[1733598542336,0.1739,4021.3,4021.1,1.06484191]
[1733598542543,0.7597,4021.4,4021.1,0.89093191]
[1733598542740,0.1739,4021.3,4021.2,1.06483191]
[1733598543246,0.1739,4021.3,4021.2,0.89093191]
[1733598543646,0.1739,4021.3,4021.2,1.06484191]
[1733598544345,0.3793,4021.4,4021.3,0.1739]
[1733598544542,0.3793,4021.4,4021.3,0.9963]
[1733598544744,0.3793,4021.4,4021.3,1.388]
[1733598545142,5.26339456,4021.4,4021.3,1.388]
[1733598545346,0.3793,4021.4,4021.3,1.388]
[1733598545646,0.3793,4021.4,4021.3,2.27893191]
[1733598546446,2.9304829,4021.5,4021.4,0.1739]
[1733598546643,2.9304829,4021.7,4021.6,0.17389]
[1733598546843,2.9304829,4021.7,4021.6,1.06482191]
[1733598549447,3.1043729,4021.7,4021.5,0.17389]
[1733598549649,2.9304829,4021.7,4021.6,0.17389]
[1733598550041,3.3395829,4021.7,4021.6,0.17389]
[1733598550843,3.3395829,4021.7,4021.6,1.06482191]
[1733598551044,0.4091,4021.7,4021.6,1.06482191]
[1733598551348,3.3395829,4021.7,4021.6,1.06482191]
[1733598551544,2.9304829,4021.8,4021.7,0.17389]
[1733598551850,2.9304829,4021.9,4021.8,0.17388]
[1733598552449,2.9304829,4021.9,4021.6,4.09873191]
[1733598552450,3.3283829,4022.0,4021.9,0.17388]
[1733598552651,0.3979,4022.0,4021.9,0.17388]
[1733598556052,3.32759087,4022.0,4021.9,0.17388]
[1733598556951,2.92954442,4022.0,4021.9,0.89093191]
[1733598557259,2.92954442,4022.4,4022.3,0.17386]
[1733598557560,2.92954442,4022.4,4022.3,1.06479191]
[1733598557748,0.3827,4022.8,4022.4,0.17386]
[1733598557749,2.92954442,4022.5,4022.4,0.17386]
[1733598558144,2.92954442,4022.5,4022.2,0.661]
[1733598558456,3.10339442,4022.5,4022.3,1.06479191]
[1733598559052,3.10339442,4022.5,4022.3,0.89093191]
[1733598559357,2.92954442,4022.5,4022.4,0.89093191]
[1733598559654,3.10339442,4022.5,4022.4,0.89093191]
[1733598560253,0.17385,4022.5,4022.4,0.89093191]
[1733598560758,2.92954442,4022.6,4022.5,0.17385]
[1733598561055,6.03328955,4022.7,4022.5,0.9088041]
[1733598561450,0.17384,4022.7,4022.5,0.7349541]
[1733598561650,6.41598955,4022.8,4022.6,0.17385]
[1733598561952,0.17385,4022.6,4022.5,0.7349541]
[1733598562257,3.38165,4022.6,4022.5,0.7349541]
[1733598562459,3.38165,4022.6,4022.5,0.9088041]
[1733598564161,3.2078,4022.6,4022.5,0.9088041]
[1733598564451,3.38165,4022.6,4022.5,0.9088041]
[1733598564658,3.38165,4022.6,4022.5,0.7349541]
[1733598566560,0.17386,4022.3,4022.2,0.83486]
[1733598567651,4.87475339,4022.5,4022.2,0.83486]
[1733598567857,3.89936334,4022.3,4022.2,0.83486]
[1733598568059,0.17386,4022.4,4022.2,0.83486]
[1733598568558,3.2078,4022.6,4022.3,1.06479191]
[1733598568766,0.17386,4022.4,4022.3,1.06479191]
[1733598569265,3.2078,4022.6,4022.3,1.06479191]
[1733598569459,0.17385,4022.5,4022.3,1.06479191]
[1733598569764,0.17386,4022.4,4022.3,1.06479191]
[1733598569955,0.17386,4022.4,4022.3,0.89093191]
[1733598570156,3.2078,4022.6,4022.5,0.17385]
[1733598570856,3.2078,4022.6,4022.3,0.89093191]
[1733598571061,3.38165,4022.6,4022.4,0.17385]
[1733598571364,3.38165,4022.6,4022.5,0.17385]
[1733598572462,0.17385,4022.6,4022.5,0.17385]
[1733598572655,0.3827,4022.8,4022.4,0.89093191]
[1733598572871,0.17383,4023.1,4022.7,0.89093191]
[1733598573061,0.56773,4023.1,4022.9,0.17383]
[1733598573567,0.56773,4023.1,4023.0,0.17383]
[1733598574267,0.17383,4023.0,4022.9,0.17383]
[1733598575563,0.17383,4023.0,4022.8,0.3749]
[1733598575564,0.3939,4023.1,4022.8,0.3749]
[1733598575763,0.17383,4023.0,4022.9,0.17383]
[1733598575959,0.3939,4023.1,4022.8,0.3749]
[1733598575960,4.29326334,4023.1,4022.8,0.3749]
[1733598576160,0.17383,4023.0,4022.8,0.54874]
[1733598576369,0.17383,4023.0,4022.9,0.89093191]
[1733598576570,0.17383,4023.0,4022.9,1.06476191]
[1733598577170,0.17383,4023.0,4022.9,0.89093191]
[1733598578371,4.29326334,4023.1,4023.0,0.17383]
[1733598578569,4.289893,4023.1,4022.9,0.89093191]
[1733598578775,4.289893,4023.1,4023.0,0.17383]
[1733598579275,3.31567975,4023.1,4023.0,0.17383]
[1733598580368,0.3939,4023.1,4023.0,0.17383]
[1733598580568,3.31567975,4023.1,4023.0,0.17383]
[1733598580964,0.3939,4023.1,4023.0,0.17383]
[1733598581364,2.92177975,4023.1,4023.0,0.17383]
[1733598581561,6.12957975,4023.2,4023.1,0.17382]
[1733598582667,6.1297097,4023.2,4023.1,0.17382]
[1733598582870,2.9219097,4023.2,4023.1,0.17382]
[1733598583077,0.17381,4023.4,4023.3,0.17382]
[1733598583279,0.17381,4023.4,4023.3,1.06475191]
[1733598583476,0.17381,4023.4,4023.3,0.89093191]
[1733598584074,0.17381,4023.4,4023.3,1.06475191]
[1733598584772,0.17381,4023.4,4023.3,0.89093191]
[1733598589884,3.0957197,4023.4,4023.3,0.89093191]
[1733598590373,0.17381,4023.4,4023.3,0.89093191]
[1733598592590,4.069803,4023.4,4023.3,0.89093191]
[1733598592882,0.17381,4023.4,4023.3,0.89093191]
[1733598594391,4.069803,4023.4,4023.3,0.89093191]
[1733598597280,0.17381,4023.4,4023.3,0.89093191]
[1733598598088,0.17383,4022.9,4022.8,0.54874]
[1733598598281,0.17383,4022.9,4022.8,1.43967191]
[1733598598792,0.56733,4022.9,4022.8,1.43967191]
[1733598598983,3.77513,4022.9,4022.8,1.43967191]
[1733598599390,8.65366502,4022.9,4022.8,1.43967191]
[1733598599886,8.65546423,4022.9,4022.8,1.43967191]
[1733598600686,8.65546423,4022.9,4022.8,1.26583191]
[1733598601087,3.77513,4022.9,4022.8,1.26583191]
[1733598601588,3.77513,4022.9,4022.8,0.89093191]
[1733598602483,3.6013,4022.9,4022.5,0.3904]
[1733598602684,0.43463,4022.6,4022.2,0.66]
[1733598602884,0.17386,4022.2,4022.1,0.66]
[1733598603086,0.17389,4021.7,4021.6,0.17389]
[1733598603385,4.08079793,4021.7,4021.6,0.17389]
[1733598603592,0.17389,4021.6,4021.5,0.17389]
[1733598603886,4.08072095,4021.6,4021.5,0.17389]
[1733598604388,0.17389,4021.5,4021.4,1.32609]
[1733598604691,3.90611923,4021.5,4021.4,1.3261]
[1733598605283,4.88363491,4021.8,4021.4,1.1522]
[1733598605284,3.90611923,4021.6,4021.4,1.1522]
[1733598605484,3.90611923,4021.6,4021.5,1.06482191]
[1733598606080,0.17388,4021.8,4021.5,0.89093191]
[1733598606284,3.34240576,4022.1,4021.5,0.89093191]
[1733598606285,0.17389,4021.7,4021.5,0.89093191]
[1733598606492,0.17389,4021.7,4021.6,1.06482191]
[1733598606788,0.17389,4021.7,4021.6,0.89093191]
[1733598612992,0.17389,4021.7,4021.6,1.06482191]
[1733598613193,0.17388,4021.8,4021.6,1.06482191]
[1733598613398,0.17389,4021.7,4021.6,1.06482191]
[1733598613595,0.17389,4021.7,4021.6,0.89093191]
[1733598619990,0.17389,4021.7,4021.6,1.09093191]
[1733598620289,0.17389,4021.8,4021.6,1.26482191]
[1733598620495,2.92890576,4022.0,4021.6,1.09093191]
[1733598620697,0.17389,4021.7,4021.6,1.09093191]
[1733598621598,3.2078,4022.2,4021.6,1.09093191]